Cogmind - Beta 10.2 @@@ ROGUE MODE // 2022.03.03 @ 01:22:59 Player: woegarden Result: Destroyed by H-77 Assassin with High-powered Shotgun Performance ------------- Evolutions (7) 3500 Regions Visited (15) 3000 Robots Destroyed (14) 70 Value Destroyed (562) 562 Prototype IDs (28) 560 Alien Tech Used (0) 0 Bonus (2413) 2413 TOTAL SCORE: 10105 Bonus ------- High Alert Combat Kills 23 Follower Combat Kills 707 Entered Garrisons 400 Used RIF Installer 1000 Aligned with FarCom 300 Friendly Fire -17 Cogmind --------- Core Integrity 0/1300 Matter 204/300 Energy 86/100 System Corruption 0% Temperature Cool (0) Movement Core (50) Location -3/Research Parts ------- > --- POWER (2) -------- (None) > --- PROPULSION (7) --- (None) > --- UTILITY (10) ----- (None) > --- WEAPON (2) ------- (None) > --- INVENTORY (4) ---- Antimatter Reactor Medium Storage Unit Energy Well (0) Coil Gun Peak State ------------ > --- POWER ------------ Fission Core > --- PROPULSION ------- Improved Gravmag System Improved Gravmag System Cooled Aerolev Unit Gravmag Array Improved Antigrav System Improved Linear Gravjet > --- UTILITY ---------- Power Amplifier Advanced Cryofiber Web Medium Storage Unit Energy Well Advanced Weight Redist. System Triangulator Advanced Sensor Array Advanced Signal Interpreter Advanced Transmission Jammer Improved Force Field > --- WEAPON ----------- Smartbomb Launcher > --- INVENTORY -------- Improved Linear Gravjet Advanced Cooling System Improved Maneuvering Thrusters System Shield Corruption Screen Coil Gun [Rating: 106] Favorites ----------- Power Ion Engine Engine Ion Engine Power Core Light Nuclear Core Reactor Antimatter Reactor Propulsion Aluminum Leg Treads Light Treads Leg Aluminum Leg Wheel Armored Huge Wheel Hover Unit Improved Gravmag System Utility Humpback Device Advanced Sensor Array Storage Humpback Processor Advanced Signal Interpreter Hackware Relay Coupler [Hunter] Protection Improved Light Armor Plating Weapon Medium Laser Energy Gun Medium Laser Energy Cannon Beam Cannon Ballistic Gun High-powered Shotgun Launcher Improved Grenade Launcher Special Weapon Remote Datajack Special Melee Weapon Improved Datajack Build | -11 -10 -10 -10 -9 -8 -7 -7 -6 -6 -6 -6 -6 -5 -4 -3 ------- Run | Scr Mat Min Exi Min Mat Fac Gar Fac Was Fac Gar Fac Fac Fac Res Slots Evolved 14 | . . . . . 4 2 . 2 . . . . 2 2 2 Power 1 | . . . . . 1 . . . . . . . . . . Propulsion 5 | . . . . . 2 1 . . . . . . . . 2 Utility 8 | . . . . . 1 1 . 2 . . . . 2 2 . Weapon . | . . . . . . . . . . . . . . . . Parts Attached 87 | . . 4 1 1 8 4 13 18 7 2 . 13 3 8 5 Power 12 | . . 1 . . 2 . 3 2 1 . . 2 . . 1 Engine 5 | . . 1 . . 1 . 1 1 . . . 1 . . . Core 6 | . . . . . 1 . 2 1 1 . . 1 . . . Reactor 1 | . . . . . . . . . . . . . . . 1 Propulsion 29 | . . . . 1 2 2 6 8 1 1 . 5 . . 3 Treads 5 | . . . . . 2 . . 3 . . . . . . . Leg 9 | . . . . 1 . . 3 3 1 1 . . . . . Wheel 5 | . . . . . . 2 . 2 . . . 1 . . . Hover 10 | . . . . . . . 3 . . . . 4 . . 3 Flight . | . . . . . . . . . . . . . . . . Utility 32 | . . 1 1 . 2 2 1 7 3 1 . 5 2 6 1 Device 19 | . . 1 . . 1 1 1 2 1 . . 5 2 4 1 Storage 3 | . . . 1 . . . . . . . . . . 2 . Processor 1 | . . . . . . . . . . 1 . . . . . Hackware 4 | . . . . . . . . 4 . . . . . . . Protection 5 | . . . . . 1 1 . 1 2 . . . . . . Artifact . | . . . . . . . . . . . . . . . . Weapon 14 | . . 2 . . 2 . 3 1 2 . . 1 1 2 . Energy Gun 2 | . . 1 . . . . . . 1 . . . . . . Energy Cannon 2 | . . 1 . . . . . . . . . . 1 . . Ballistic Gun 6 | . . . . . 2 . 2 . 1 . . . . 1 . Ballistic Cannon . | . . . . . . . . . . . . . . . . Launcher 2 | . . . . . . . 1 . . . . . . 1 . Special Weapon 1 | . . . . . . . . . . . . 1 . . . Impact Weapon . | . . . . . . . . . . . . . . . . Slashing Weapon . | . . . . . . . . . . . . . . . . Piercing Weapon . | . . . . . . . . . . . . . . . . Special Melee Weapon 1 | . . . . . . . . 1 . . . . . . . Unidentified Prototypes 1 | . . . . . . . . . . . . 1 . . . Parts Lost 50 | . . 3 . 1 2 1 8 8 1 . 11 . . 2 13 Power 9 | . . 1 . . . . 2 2 . . 2 . . 1 1 Propulsion 17 | . . . . . 1 . 2 4 . . 3 . . . 7 Utility 13 | . . . . . . . 2 2 . . 5 . . . 4 Weapon 11 | . . 2 . 1 1 1 2 . 1 . 1 . . 1 1 Highest Loss Streak 13 | . . 2 . 1 1 1 7 5 1 . 11 . . 1 13 Average Slot Usage (%) 80 | . 85 84 87 71 83 89 70 86 74 86 69 56 89 91 54 Engine 9 | . 14 13 14 14 15 7 6 5 6 6 4 4 5 4 . Core 3 | . . . . . 2 7 6 5 2 6 3 1 5 5 2 Treads 5 | . . . . . 17 15 12 9 1 . . . . . . Leg 14 | . 28 28 28 28 17 7 11 17 3 6 5 . . . . Wheel 3 | . . . . . . 13 1 1 13 13 12 . . . . Hover 4 | . . . . . . . 2 . . . . 22 23 21 17 Device 8 | . . 6 2 . 7 7 1 1 14 18 11 13 41 38 20 Storage 8 | . 14 14 14 14 9 7 7 5 . . . . . 7 6 Processor 1 | . . . . . . . . . . 1 6 6 5 5 2 Hackware 2 | . . . . . . . . 22 12 . . . . . . Protection 3 | . . . . . 1 6 4 2 11 20 15 . . . . Energy Gun 6 | . 28 19 14 14 6 . . . 2 6 4 . . . . Energy Cannon 3 | . . 1 14 . . . . . . . . . . 4 . Ballistic Gun 4 | . . . . . 6 14 9 6 3 6 3 . . . . Naked Turns 27 | . . . . . . . . . . . . . . . 27 Heaviest Build 102 | 10 10 15 90 87 93 96 102 102 50 50 49 33 43 62 50 Greatest Support 117 | 20 20 20 20 20 40 40 46 56 56 56 56 71 80 80 117 Greatest Overweight (x) 6 | . . . 4 4 2 2 5 6 . 2 . . . . 5 Average Overweight (x) . | . . . 2 4 2 2 2 1 . . . . . . . Largest Inventory Capacity 24 | . 6 6 24 24 24 24 24 24 4 4 4 4 4 8 8 Average Capacity 16 | . 6 6 20 24 24 24 24 21 4 4 4 4 4 6 6 Most Carried 24 | . 6 6 11 20 19 22 24 21 4 4 4 4 4 8 7 Average Carried 10 | . 6 5 9 16 15 16 20 14 3 3 4 2 2 5 4 Final Capacity 24 | 6 6 6 24 24 24 24 24 4 4 4 4 4 4 8 4 Final Carried 22 | 6 6 5 11 20 14 22 21 4 3 4 4 4 3 8 4 Class Distribution -------------------- 44% | Hauler-Mutant 17% | Mutant 10% | Hauler-Skirmisher 9% | Infiltrator-Scout 6% | Scavenger-Mutant 3% | Skirmisher 3% | Infiltrator-Mutant 3% | Scavenger-Skirmisher Dominant Class ---------------- Mutant | -10/Materials Mutant | -10/Mines Hauler-Mutant | -10/Exiles Hauler-Mutant | -9/Mines Hauler-Mutant | -8/Materials Hauler-Skirmisher | -7/Factory Hauler-Mutant | -7/Garrison Scavenger-Mutant | -6/Factory Scavenger-Skirmisher | -6/Waste Skirmisher | -6/Factory Mutant | -6/Garrison Infiltrator-Mutant | -6/Factory Infiltrator-Scout | -5/Factory Infiltrator-Scout | -4/Factory Infiltrator-Scout | -3/Research Resources | -11 -10 -10 -10 -9 -8 -7 -7 -6 -6 -6 -6 -6 -5 -4 -3 ----------- Run | Scr Mat Min Exi Min Mat Fac Gar Fac Was Fac Gar Fac Fac Fac Res Matter Collected 982 | 200 . 20 40 5 47 46 237 81 193 . 1 112 . . . Remotely . | . . . . . . . . . . . . . . . . Salvage Created 401 | . . 107 . 51 . 46 116 . . 21 60 . . . . Parts 20 | . . 2 . 5 . 2 7 . . 3 1 . . . . Haulers Intercepted 1 | . . . . . . 1 . . . . . . . . . Recyclers Shooed 4 | . . . . 2 . . . 1 . 1 . . . . . Parts Field Recycled . | . . . . . . . . . . . . . . . . Retrieved Matter . | . . . . . . . . . . . . . . . . Parts Self-Destructed . | . . . . . . . . . . . . . . . . Prevented . | . . . . . . . . . . . . . . . . Kills | -11 -10 -10 -10 -9 -8 -7 -7 -6 -6 -6 -6 -6 -5 -4 -3 ------- Run | Scr Mat Min Exi Min Mat Fac Gar Fac Was Fac Gar Fac Fac Fac Res Combat Hostiles Destroyed 12 | . . 2 . 4 . . 4 . . . 2 . . . . Melee 1 | . . . . . . . . . . . 1 . . . . Guns 11 | . . 2 . 4 . . 4 . . . 1 . . . . Classes Destroyed 4 | . . 1 . 1 . 1 . . . 1 . . . . . Worker 1 | . . . . . . . . . . 1 . . . . . Hauler 1 | . . . . . . 1 . . . . . . . . . Swarmer 7 | . . . . 4 . . 2 . . . 1 . . . . Grunt 5 | . . 2 . . . . 2 . . . 1 . . . . Best Kill Streak 4 | . . 2 . 4 . 1 2 . . 1 1 . . . . Combat Bots Only 4 | . . 2 . 4 . . 2 . . . 1 . . . . Max Kills in Single Turn 1 | . . 1 . 1 . 1 1 . . 1 1 . . . . Gunslinging . | . . . . . . . . . . . . . . . . Exploded . | . . . . . . . . . . . . . . . . Melee 1 | . . . . . . . . . . . 1 . . . . Uniques/NPCs Destroyed . | . . . . . . . . . . . . . . . . Combat | -11 -10 -10 -10 -9 -8 -7 -7 -6 -6 -6 -6 -6 -5 -4 -3 -------- Run | Scr Mat Min Exi Min Mat Fac Gar Fac Was Fac Gar Fac Fac Fac Res Damage Taken 7547 | . 70 292 . 221 220 320 1302 590 135 22 1721 11 . 529 2114 Core 2062 | . . 49 . 23 20 29 178 12 72 . 332 1 . 37 1309 Absorbed by Shields 244 | . . . . . . . . . . . 98 . . 99 47 Core Remaining (%) 83 | 100 . . . 71 96 . 70 . . . . 50 100 96 . Volleys Fired 60 | . . 10 . 17 . 2 20 6 . . 5 . . . . Largest 2 | . . 2 . 2 . 2 2 1 . . 2 . . . . Hottest 110 | . . 90 . 110 . 45 48 28 . . 106 . . . . Shots Fired 75 | . . 13 . 18 . 4 24 5 . 1 10 . . . . Gun 72 | . . 13 . 17 . 4 22 5 . 1 10 . . . . Cannon 1 | . . . . 1 . . . . . . . . . . . Launcher 2 | . . . . . . . 2 . . . . . . . . Special . | . . . . . . . . . . . . . . . . Kinetic 37 | . . . . . . 4 22 5 . 1 5 . . . . Thermal 32 | . . 9 . 18 . . . . . . 5 . . . . Explosive 2 | . . . . . . . 2 . . . . . . . . Electromagnetic 4 | . . 4 . . . . . . . . . . . . . Robot Hit Streak 10 | . . 7 . 3 . 2 4 9 . 10 4 . . . . Robot Miss Streak 4 | . . 1 . 4 . 2 2 . . . 1 . . . . Penetration Max 1 | . . . . . . . 1 . . . . . . . . Secondary Targets . | . . . . . . . . . . . . . . . . Shots Hit Robots 52 | . . 11 . 8 . 2 18 6 . 1 6 . . . . Core Hits 33 | . . 5 . 6 . 2 12 2 . 1 4 . . . 1 Critical Hits 2 | . . . . . . . 1 1 . . . . . . . Critical Kills . | . . . . . . . . . . . . . . . . Critical Parts Destroyed 2 | . . . . . . . 1 1 . . . . . . . Melee Attacks 6 | . . . . . . . . 6 . . . . . . . Impact . | . . . . . . . . . . . . . . . . Slashing . | . . . . . . . . . . . . . . . . Piercing . | . . . . . . . . . . . . . . . . Sneak Attacks . | . . . . . . . . . . . . . . . . Combat Hostiles . | . . . . . . . . . . . . . . . . Follow-up Attacks . | . . . . . . . . . . . . . . . . Damage Inflicted 953 | . . 136 . 112 . 27 354 109 . 11 167 24 . 2 11 Guns 835 | . . 136 . 112 . 27 302 109 . 11 138 . . . . Cannons . | . . . . . . . . . . . . . . . . Explosions 52 | . . . . . . . 52 . . . . . . . . Melee . | . . . . . . . . . . . . . . . . Ramming 66 | . . . . . . . . . . . 29 24 . 2 11 Kinetic 517 | . . . . . . 27 302 109 . 11 68 . . . . Thermal 281 | . . 99 . 112 . . . . . . 70 . . . . Explosive 52 | . . . . . . . 52 . . . . . . . . Electromagnetic 37 | . . 37 . . . . . . . . . . . . . Impact . | . . . . . . . . . . . . . . . . Slashing . | . . . . . . . . . . . . . . . . Piercing . | . . . . . . . . . . . . . . . . Highest Corruption 13 | . . . . . . 3 3 10 10 10 11 13 . . . Average Corruption 7 | . . . . . . 2 3 9 10 10 10 12 . . . Corruption Purged . | . . . . . . . . . . . . . . . . Effects 74 | . . . . . . 2 12 8 12 6 10 24 . . . Message Errors 17 | . . . . . . 1 7 1 1 1 2 4 . . . Matter Fused 14 | . . . . . . 1 1 2 5 2 2 1 . . . Heat Flow Errors 1 | . . . . . . . . . . . . 1 . . . Energy Discharges 4 | . . . . . . . 1 . 1 . . 2 . . . Parts Rejected 2 | . . . . . . . . . 1 . 1 . . . . Data Loss (minor) 10 | . . . . . . . 3 1 3 1 . 2 . . . Data Loss (major) 4 | . . . . . . . . . . . 1 3 . . . Misfires 2 | . . . . . . . . . . 1 1 . . . . Misdirections 15 | . . . . . . . . 2 1 1 . 11 . . . Targeting Errors 4 | . . . . . . . . 1 . . 3 . . . . Weapon Failures 1 | . . . . . . . . 1 . . . . . . . Overload Shots . | . . . . . . . . . . . . . . . . Overflow Damage . | . . . . . . . . . . . . . . . . Projectiles . | . . . . . . . . . . . . . . . . Explosions . | . . . . . . . . . . . . . . . . Melee . | . . . . . . . . . . . . . . . . Knockbacks . | . . . . . . . . . . . . . . . . Impact . | . . . . . . . . . . . . . . . . Kinetic . | . . . . . . . . . . . . . . . . Secondary . | . . . . . . . . . . . . . . . . Self-Inflicted Damage 30 | . . . . . . . . . . . 13 11 . 1 5 Shots . | . . . . . . . . . . . . . . . . Rammed 12 | . . . . . . . . . . 1 5 3 . 1 2 Targets Rammed 12 | . . . . . . . . . . 1 5 3 . 1 2 Kicked . | . . . . . . . . . . . . . . . . Crushed . | . . . . . . . . . . . . . . . . Highest Temperature 184 | . . 184 . 148 . 4 10 6 . . 184 165 . . . Average Temperature 75 | . . 105 . 65 . 3 3 6 . . 84 90 . . . Received Heat Transfer 1068 | . 39 168 . . 63 . 237 12 . . 289 . . 60 200 Siege Activations . | . . . . . . . . . . . . . . . . Robots Corrupted . | . . . . . . . . . . . . . . . . Combat Hostiles . | . . . . . . . . . . . . . . . . Parts Fried . | . . . . . . . . . . . . . . . . Impact Corruptions . | . . . . . . . . . . . . . . . . Robots Melted . | . . . . . . . . . . . . . . . . Combat Hostiles . | . . . . . . . . . . . . . . . . Parts Melted 2 | . . 1 . 1 . . . . . . . . . . . Heat Transferred 740 | . . 296 . 333 . . . . . . 111 . . . . Parts Sabotaged . | . . . . . . . . . . . . . . . . Parts Stolen . | . . . . . . . . . . . . . . . . Parts Stripped . | . . . . . . . . . . . . . . . . Power Chain Reactions . | . . . . . . . . . . . . . . . . Missiles Intercepted . | . . . . . . . . . . . . . . . . Alert | -11 -10 -10 -10 -9 -8 -7 -7 -6 -6 -6 -6 -6 -5 -4 -3 ------- Run | Scr Mat Min Exi Min Mat Fac Gar Fac Was Fac Gar Fac Fac Fac Res Peak Influence 614 | . 15 45 . 90 87 7 614 322 152 108 153 85 41 159 108 Initial 322 | . . 5 . . 35 . . 322 99 63 75 25 41 19 78 Average 106 | . 8 24 . 84 40 2 264 313 110 77 83 59 41 94 55 Maximum Alert Level 2 | . . . . . . . 2 1 . . . . . . . Low Security (%) 84 | . 100 100 . 100 100 100 53 . 100 100 100 100 100 100 100 Level 1 9 | . . . . . . . 13 100 . . . . . . . Level 2 5 | . . . . . . . 32 . . . . . . . . Level 3 . | . . . . . . . . . . . . . . . . Level 4 . | . . . . . . . . . . . . . . . . Level 5 . | . . . . . . . . . . . . . . . . High Security . | . . . . . . . . . . . . . . . . Max Security . | . . . . . . . . . . . . . . . . Squads Dispatched 7 | . . . . . 1 1 . 1 . . . 1 . 1 2 Investigation 2 | . . . . . 1 . . . . . . . . . 1 Extermination 3 | . . . . . . 1 . 1 . . . 1 . . . Reinforcement 2 | . . . . . . . . . . . . . . 1 1 Assault . | . . . . . . . . . . . . . . . . Garrison . | . . . . . . . . . . . . . . . . Intercept . | . . . . . . . . . . . . . . . . Construction Impeded . | . . . . . . . . . . . . . . . . Haulers Reinforced . | . . . . . . . . . . . . . . . . Stealth | -11 -10 -10 -10 -9 -8 -7 -7 -6 -6 -6 -6 -6 -5 -4 -3 --------- Run | Scr Mat Min Exi Min Mat Fac Gar Fac Was Fac Gar Fac Fac Fac Res Distress Signals 1 | . 1 . . . . . . . . . . . . . . Communications Jammed 9 | . . . . . . . . . . . . . . 9 . Distress Signals 3 | . . . . . . . . . . . . . . 3 . Times Spotted 98 | . 3 2 . 4 3 2 22 4 7 2 22 2 . 10 15 Peak Tracking Total 16 | . 3 2 . 4 2 2 8 3 6 2 16 2 . 4 12 Tactical Retreats 14 | . 1 . . . . . 3 . 2 . 2 . . 5 1 Traps | -11 -10 -10 -10 -9 -8 -7 -7 -6 -6 -6 -6 -6 -5 -4 -3 ------- Run | Scr Mat Min Exi Min Mat Fac Gar Fac Was Fac Gar Fac Fac Fac Res Traps Triggered 13 | . . . . . 2 . 1 2 . . 2 2 . 3 1 Indirectly . | . . . . . . . . . . . . . . . . Trap Hack Attempts . | . . . . . . . . . . . . . . . . Triggered . | . . . . . . . . . . . . . . . . Disarmed . | . . . . . . . . . . . . . . . . Reprogrammed . | . . . . . . . . . . . . . . . . Reused 2 | . . . . . . . 2 . . . . . . . . Traps Extracted . | . . . . . . . . . . . . . . . . Installed 4 | . . . . . . . 4 . . . . . . . . Triggered 2 | . . . . . . . 2 . . . . . . . . Machines | -11 -10 -10 -10 -9 -8 -7 -7 -6 -6 -6 -6 -6 -5 -4 -3 ---------- Run | Scr Mat Min Exi Min Mat Fac Gar Fac Was Fac Gar Fac Fac Fac Res Machines Disabled 2 | . . 1 . . . . 1 . . . . . . . . Max in Single Turn 1 | . . 1 . . . . 1 . . . . . . . . Garrison Access 1 | . . . . . . . . . . . . 1 . . . Garrison Relay 1 | . . . . . . . 1 . . . . . . . . Machines Sabotaged . | . . . . . . . . . . . . . . . . Garrisons Compromised . | . . . . . . . . . . . . . . . . Overloaded Fab Kills . | . . . . . . . . . . . . . . . . Fab Network Shutdowns . | . . . . . . . . . . . . . . . . Hacking | -11 -10 -10 -10 -9 -8 -7 -7 -6 -6 -6 -6 -6 -5 -4 -3 --------- Run | Scr Mat Min Exi Min Mat Fac Gar Fac Was Fac Gar Fac Fac Fac Res Machines Accessed 8 | . . . 1 . 1 2 . 1 . 1 . 2 . . . Terminals 4 | . . . . . 1 1 . 1 . . . 1 . . . Fabricators . | . . . . . . . . . . . . . . . . Repair Stations . | . . . . . . . . . . . . . . . . Recycling Units . | . . . . . . . . . . . . . . . . Scanalyzers . | . . . . . . . . . . . . . . . . Garrison Access 3 | . . . . . . 1 . . . 1 . 1 . . . Total Hacks 11 | . . . 1 . 2 2 . 1 . 2 . 3 . . . Successful 8 | . . . 1 . 1 1 . . . 2 . 3 . . . Failed 3 | . . . . . 1 1 . 1 . . . . . . . Catastrophic . | . . . . . . . . . . . . . . . . Database Lockouts . | . . . . . . . . . . . . . . . . Manual 1 | . . . 1 . . . . . . . . . . . . Terminals 5 | . . . . . 2 1 . 1 . . . 1 . . . Fabricators . | . . . . . . . . . . . . . . . . Repair Stations . | . . . . . . . . . . . . . . . . Recycling Units . | . . . . . . . . . . . . . . . . Scanalyzers . | . . . . . . . . . . . . . . . . Garrison Access 5 | . . . . . . 1 . . . 2 . 2 . . . Terminal Hacks 3 | . . . 1 . 1 . . . . . . 1 . . . Prototype ID Bank 1 | . . . . . . . . . . . . 1 . . . Branch Access Points 1 | . . . . . 1 . . . . . . . . . . EX-Prototype ID Bank 1 | . . . 1 . . . . . . . . . . . . Fabricator Hacks . | . . . . . . . . . . . . . . . . Repair Station Hacks . | . . . . . . . . . . . . . . . . Recycling Unit Hacks . | . . . . . . . . . . . . . . . . Scanalyzer . | . . . . . . . . . . . . . . . . Garrison Access Hacks 5 | . . . . . . 1 . . . 2 . 2 . . . Unlock Access 2 | . . . . . . 1 . . . 1 . . . . . Seal Access 1 | . . . . . . . . . . . . 1 . . . Coupler Status 2 | . . . . . . . . . . 1 . 1 . . . Unauthorized Hacks . | . . . . . . . . . . . . . . . . Terminals . | . . . . . . . . . . . . . . . . Fabricators . | . . . . . . . . . . . . . . . . Repair Stations . | . . . . . . . . . . . . . . . . Recycling Units . | . . . . . . . . . . . . . . . . Scanalyzers . | . . . . . . . . . . . . . . . . Garrison Access . | . . . . . . . . . . . . . . . . Data Cores Recovered . | . . . . . . . . . . . . . . . . Used . | . . . . . . . . . . . . . . . . Hacking Detections 2 | . . . . . 1 . . 1 . . . . . . . Full Trace Events . | . . . . . . . . . . . . . . . . Feedback Events . | . . . . . . . . . . . . . . . . Feedback Blocked . | . . . . . . . . . . . . . . . . Robot Schematics Acquired . | . . . . . . . . . . . . . . . . Robots Built . | . . . . . . . . . . . . . . . . Matter . | . . . . . . . . . . . . . . . . Time . | . . . . . . . . . . . . . . . . Total Robot Build Rating . | . . . . . . . . . . . . . . . . Part Schematics Acquired . | . . . . . . . . . . . . . . . . Parts Built . | . . . . . . . . . . . . . . . . Matter . | . . . . . . . . . . . . . . . . Time . | . . . . . . . . . . . . . . . . Total Part Build Rating . | . . . . . . . . . . . . . . . . Parts Repaired . | . . . . . . . . . . . . . . . . Time . | . . . . . . . . . . . . . . . . Parts Recycled . | . . . . . . . . . . . . . . . . Recycled Matter . | . . . . . . . . . . . . . . . . Retrieved Matter . | . . . . . . . . . . . . . . . . Retrieved Components . | . . . . . . . . . . . . . . . . Parts Scanalyzed . | . . . . . . . . . . . . . . . . Part Schematics Acquired . | . . . . . . . . . . . . . . . . Parts Damaged . | . . . . . . . . . . . . . . . . Bothacking | -11 -10 -10 -10 -9 -8 -7 -7 -6 -6 -6 -6 -6 -5 -4 -3 ------------ Run | Scr Mat Min Exi Min Mat Fac Gar Fac Was Fac Gar Fac Fac Fac Res Used RIF Installer 2 | . . . . . . . 1 . . . 1 . . . . Command Fork 1 | . . . . . . . . . . . 1 . . . . Robots Hacked 1 | . . . . . . . . 1 . . . . . . . Non-combat . | . . . . . . . . . . . . . . . . Combat 1 | . . . . . . . . 1 . . . . . . . Robot Hacks Applied 1 | . . . . . . . . 1 . . . . . . . formatsys_high 1 | . . . . . . . . 1 . . . . . . . Relay Couplers Released 4 | . . . . . . . 4 . . . . . . . . Machine Destruction 4 | . . . . . . . 4 . . . . . . . . Attached 4 | . . . . . . . . 4 . . . . . . . Robots Rewired . | . . . . . . . . . . . . . . . . Allies Hacked . | . . . . . . . . . . . . . . . . Hacks Repelled . | . . . . . . . . . . . . . . . . Allies | -11 -10 -10 -10 -9 -8 -7 -7 -6 -6 -6 -6 -6 -5 -4 -3 -------- Run | Scr Mat Min Exi Min Mat Fac Gar Fac Was Fac Gar Fac Fac Fac Res Total Allies 19 | . . . . . . . . 1 18 . . . . . . Largest Group 18 | . . . . . . . . 1 18 4 4 . . . . Highest-Rated Group 650 | . . . . . . . . 12 650 160 160 . . . . Highest-Rated Ally 50 | . . . . . . . . 12 50 50 50 . . . . Total Orders . | . . . . . . . . . . . . . . . . Ally Attacks 202 | . . . . . 3 . 34 7 141 7 10 . . . . Total Damage 9696 | . . . . . 172 . 1617 101 7235 186 385 . . . . Kills 34 | . . . . . 2 . 11 2 16 1 2 . . . . Allies Corrupted . | . . . . . . . . . . . . . . . . Allies Melted . | . . . . . . . . . . . . . . . . Turrets Deployed 3 | . . . . . 1 . 2 . . . . . . . . Intel | -11 -10 -10 -10 -9 -8 -7 -7 -6 -6 -6 -6 -6 -5 -4 -3 ------- Run | Scr Mat Min Exi Min Mat Fac Gar Fac Was Fac Gar Fac Fac Fac Res Robot Analysis Total . | . . . . . . . . . . . . . . . . Derelict Logs Recovered 1 | . . 1 . . . . . . . . . . . . . Drone Launches . | . . . . . . . . . . . . . . . . Drone Recoveries . | . . . . . . . . . . . . . . . . Exploration | -11 -10 -10 -10 -9 -8 -7 -7 -6 -6 -6 -6 -6 -5 -4 -3 ------------- Run | Scr Mat Min Exi Min Mat Fac Gar Fac Was Fac Gar Fac Fac Fac Res Turns Passed 5435 | . 44 412 1046 284 482 634 683 345 254 184 138 377 65 399 88 Spaces Moved 4146 | 1 37 317 506 100 230 300 283 170 242 160 117 673 128 737 145 Core 64 | . . . . . . . . . . . 2 17 . . 45 Treads 606 | . . . . . 230 300 76 . . . . . . . . Legs 1317 | 1 37 317 506 100 . . 197 145 . 14 . . . . . Wheels 574 | . . . . . . . . 25 242 146 115 46 . . . Hover 1585 | . . . . . . . 10 . . . . 610 128 737 100 Flight . | . . . . . . . . . . . . . . . . Fastest Speed 27 | 120 120 120 120 240 200 200 180 100 100 100 50 45 45 45 27 Average Speed 119 | 120 120 120 205 240 200 200 207 174 100 107 99 49 45 45 46 Slowest Speed 390 | 120 120 120 240 240 200 200 390 300 100 190 100 100 45 45 300 Overloaded Moves 23 | . . . . . . . . . . . . . . . 23 Propulsion Burnouts . | . . . . . . . . . . . . . . . . Robots Hopped 1 | . . . . . . . 1 . . . . . . . . Cave-ins Triggered . | . . . . . . . . . . . . . . . . Exploration Rate (%) 30 | 2 13 70 91 28 19 9 38 6 93 6 50 18 4 27 7 Regions Visited 15 Branch Regions 3 Pre-discovered Areas . | . . . . . . . . . . . . . . . . Known Exits Taken 4 | . . . . . . 1 . . . 1 . . 1 1 . Unknown Exits Taken 7 | 1 1 1 1 1 1 . . . . . . 1 . . . Scrap Searched 2 | . . 1 . 1 . . . . . . . . . . . Spaces Dug . | . . . . . . . . . . . . . . . . Terrain Destroyed 12 | . . . . . . . 12 . . . . . . . . Melee . | . . . . . . . . . . . . . . . . Projectile . | . . . . . . . . . . . . . . . . AOE 12 | . . . . . . . 12 . . . . . . . . Terrain Rammed . | . . . . . . . . . . . . . . . . Walls Destroyed . | . . . . . . . . . . . . . . . . Machines Disabled . | . . . . . . . . . . . . . . . . Actions | -11 -10 -10 -10 -9 -8 -7 -7 -6 -6 -6 -6 -6 -5 -4 -3 --------- Run | Scr Mat Min Exi Min Mat Fac Gar Fac Was Fac Gar Fac Fac Fac Res Total 4547 | . 36 334 516 126 255 330 361 210 252 171 130 715 135 807 169 Wait 70 | . . 3 . . 6 11 7 . 1 3 . 14 . 18 7 Move 4133 | . 36 316 505 99 229 300 280 170 241 160 117 672 127 736 145 Hop 1 | . . . . . . . 1 . . . . . . . . Pick Up 92 | . . 1 7 9 6 12 19 7 . 2 . 10 4 14 1 Fast Attach 17 | . . 2 1 . . . . 2 6 1 . 4 . . 1 Attach 55 | . . 2 . . 6 3 10 14 1 . . 9 3 4 3 Detach 4 | . . . 1 . . . . . . . . . . . 3 Swap 15 | . . . . 1 2 1 3 2 . 1 . . . 4 1 Drop 51 | . . . 2 . 6 1 15 3 3 3 . 1 1 10 6 Fire 60 | . . 10 . 17 . 2 20 6 . . 5 . . . . Melee 6 | . . . . . . . . 6 . . . . . . . Ram 11 | . . . . . . . . . . 1 4 3 . 1 2 Kick . | . . . . . . . . . . . . . . . . Crush . | . . . . . . . . . . . . . . . . Escape Stasis 28 | . . . . . . . 2 . . . 4 2 . 20 . Rewire . | . . . . . . . . . . . . . . . . Trap 4 | . . . . . . . 4 . . . . . . . . Miscellaneous . | . . . . . . . . . . . . . . . . Route ------- -11/Scrapyard -10/Materials -10/Mines -10/Exiles -9/Mines -8/Materials -7/Factory -7/Garrison -6/Factory -6/Waste -6/Factory -6/Garrison -6/Factory -5/Factory -4/Factory -3/Research History --------- Turn | Location | Event 1 | -11/Scrapyard | Discovered new exit (range 0) 1 | -11/Scrapyard | Entered Materials 39 | -10/Materials | Discovered new exit (range 6) 45 | -10/Materials | Entered Mines 121 | -10/Mines | Learned Materials terminal intel 312 | -10/Mines | Build established: Mutant 449 | -10/Mines | Deemed a non-threat by the Exiles lab entrance 449 | -10/Mines | Discovered new exit (range 5) 457 | -10/Mines | Entered Exiles 493 | -10/Exiles | Met 8R-AWN 513 | -10/Exiles | Met EX-HEX 581 | -10/Exiles | Met EX-DEC 816 | -10/Exiles | Met EX-BIN 842 | -10/Exiles | Aligned with FarCom system 845 | -10/Exiles | Given EX-Vault access code 900 | -10/Exiles | Opened EX-Vault 917 | -10/Exiles | Found Deploy-a-Sentry 920 | -10/Exiles | Found Deploy-a-Sentry 924 | -10/Exiles | Found Deploy-a-Sentry 941 | -10/Exiles | Build established: Hauler-Mutant 977 | -10/Exiles | Warned to stay clear of 0b10 Research branches 1130 | -10/Exiles | Visited The Gauntlet 1481 | -10/Exiles | Discovered new exit (range 11) 1503 | -10/Exiles | Left Exiles lab with Deploy-a-Sentry 1503 | -10/Exiles | Entered Mines 1682 | -9/Mines | Found a hidden stash of uninstalled traps 1755 | -9/Mines | Discovered new exit (range 14) 1787 | -9/Mines | Entered Materials 1787 | -8/Materials | Evolved 4 slots: Power x1, Propulsion x2, Utility x1 1788 | -8/Materials | Loaded intel: 12 terminal locations 2117 | -8/Materials | DAS Turret deployed 2249 | -8/Materials | Discovered new exit (range 11) 2269 | -8/Materials | Entered Factory 2269 | -7/Factory | Evolved 2 slots: Propulsion x1, Utility x1 2410 | -7/Factory | Build established: Hauler-Skirmisher 2903 | -7/Factory | Identified exit to Garrison 2903 | -7/Factory | Entered Garrison 2955 | -7/Garrison | DAS Turret deployed 3019 | -7/Garrison | Build established: Hauler-Mutant 3052 | -7/Garrison | Triggered checkpoint 3160 | -7/Garrison | Garrison Relay disabled 3318 | -7/Garrison | DAS Turret deployed 3322 | -7/Garrison | Triggered checkpoint 3327 | -7/Garrison | Triggered checkpoint 3405 | -7/Garrison | Lost 7 parts (2p2n1u2w) 3486 | -7/Garrison | Triggered checkpoint 3546 | -7/Garrison | Discovered new exit (range 10) 3577 | -7/Garrison | Installed Relay Interface Framework 3586 | -7/Garrison | Entered Factory 3586 | -6/Factory | Evolved 2 slots: Utility x2 3786 | -6/Factory | System corruption reached 10% 3816 | -6/Factory | Lost 5 parts (1p3n1u) 3914 | -6/Factory | Lost 3 parts (1p1n1u) 3931 | -6/Factory | Sucked down chute 3931 | -6/Factory | Entered Waste 3940 | -6/Waste | 1 allies followed down the chute 3944 | -6/Waste | Spotted C-40 Crusher 3949 | -6/Waste | Spotted C-40 Crusher 3951 | -6/Waste | Spotted C-40 Crusher 3955 | -6/Waste | Spotted C-40 Crusher 3957 | -6/Waste | Crushed by Compactor (1 part destroyed) 3965 | -6/Waste | Spotted C-40 Crusher 3965 | -6/Waste | Spotted C-40 Crusher 3976 | -6/Waste | Crushed by Compactor (0 parts destroyed, 2 dropped) 4021 | -6/Waste | Warlord forces began an assault 4041 | -6/Waste | Allies destroyed C-40 Crusher 4044 | -6/Waste | Allies destroyed C-40 Crusher 4169 | -6/Waste | Discovered new exit (range 15) 4185 | -6/Waste | Entered Factory 4185 | -6/Factory | Accompanied by 4 allies 4366 | -6/Factory | Identified exit to Garrison 4369 | -6/Factory | Entered Garrison 4369 | -6/Garrison | Accompanied by 4 allies 4412 | -6/Garrison | Triggered checkpoint 4426 | -6/Garrison | Triggered checkpoint 4436 | -6/Garrison | Triggered checkpoint 4439 | -6/Garrison | Triggered checkpoint 4477 | -6/Garrison | Triggered checkpoint 4486 | -6/Garrison | Discovered new exit (range 14) 4504 | -6/Garrison | Expanded RIF knowledge: Command Fork 4507 | -6/Garrison | Entered Factory 4535 | -6/Factory | Lost 11 parts (2p3n5u1w) 4830 | -6/Factory | Discovered new exit (range 13) 4884 | -6/Factory | Entered another Factory area 4884 | -5/Factory | Evolved 2 slots: Utility x2 4941 | -5/Factory | Discovered new exit (range 4) 4949 | -5/Factory | Identified exit to Factory 4949 | -5/Factory | Entered another Factory area 4949 | -4/Factory | Evolved 2 slots: Utility x2 5177 | -4/Factory | Build established: Infiltrator-Scout 5314 | -4/Factory | Discovered new exit (range 9) 5345 | -4/Factory | Identified exit to Research 5348 | -4/Factory | Entered Research 5348 | -3/Research | Evolved 2 slots: Propulsion x2 5379 | -3/Research | Spotted B-86 Titan 5408 | -3/Research | Released all parts (3) 5409 | -3/Research | Core integrity fell below 50% 5409 | -3/Research | Spotted B-86 Titan 5433 | -3/Research | Core integrity fell below 20% 5436 | -3/Research | Destroyed by H-77 Assassin with High-powered Shotgun Last Messages --------------- 05407_ Penetrated by Slug. 05407_ Slug penetrates Wall. 05407_ Penetrated by Slug. 05407_ Dropped Imp. Maneuvering Thrusters. 05408_ Released Triangulator. 05408_ Released Adv. Signal Interpreter. 05408_ Released Adv. Transmission Jammer. 05412_ R-10 Processor collects Imp. Maneuvering Thrusters. 05415_ Slug penetrates Vacuum Chamber. 05419_ Acquired Antimatter Reactor. 05420_ Dropped Antimatter Reactor. 05421_ Slug penetrates Wall. 05421_ Dropped Adv. Cryofiber Web. 05422_ Acquired Antimatter Reactor. 05422_ Slug penetrates Wall. 05431_ Slammed into S-43 Plague. 05433_ Slug penetrates Wall. 05436_ Penetrated by Slug. 05436_ S-43 Plague destroyed. 05436_ Slug penetrates Wall. Map ----- +----------------------------------------------------+ | ???????####### # ????????????????????????? | | ??????? ????????????????????????? | | ??????? ] ????????????????????????? | | ???????? ?????????????????????????? | | ????????? ?????????????????????????? | | ?????????# """ #??????????????????????????? | | ?????????# """ #??????????????????????????? | | ?????????# """ #??????????????????????????? | | ?????????# BB #??????????????????????????? | | ?????????# BB #??????????????????????????? | | ?????????# #??????????????????????????? | | ?????????# #??????????????????????????? | | ########## #??????????????????????????? | | #??????????????????????????? | | "" "" #??????????????????????????? | | ""T"" #??????????????????????????? | | "" !!! """ #??????????????????????????? | | "" !########## #??????????????????????????? | | "" # # #??????????????????????????? | | "" # # #??????????????????????????? | | "" / /[[ R/ +??????????????????????????? | | # /[[ #h g#######????????????????????? | | #? ][[ # gh ###############??????? | | #??####### ## #??????? | | #####+#######?#" ## #??????? | | #?#""" !* *@ ## """ """ #??????? | | #?#G *gg ## """ """ #??????? | | """"""" #?#""" ** *# """ """ #??????? | | """"""" #?#" %#s #??????? | | """"""" #?#### =s #??????? | | #????# # s #??????? | | #????########+##+# #??????? | | ??""""""" #?????????????? # #??????? | | ?????"""" #?????????????? # """Y""" #??????? | | ????????? #????????????? # """"""" #??????? | | ????????? #????????????? ##############??????? | | ????????? #???????????? #???????????????????? | | ??????????###???????????? #???????????????????? | | ???????????????????????? #???????????????????? | | ???????????????????????? ????????????????????? | | ???????????????????????######????????????????????? | | ?????????????????????????????????????????????????? | | ?????????????????????????????????????????????????? | | ?????????????????????????????????????????????????? | | ?????????????????????????????????????????????????? | | ?????????????????????????????????????????????????? | | ?????????????????????????????????????????????????? | | ?????????????????????????????????????????????????? | | ?????????????????????????????????????????????????? | | ?????????????????????????????????????????????????? | +----------------------------------------------------+ Best States ------------- Heat Dissipation 77 Energy Generation 36 Energy Capacity 860 Matter Stores 300 Matter Capacity 300 Sight Range 16 Robot Scan Range 16 Terrain Scan Density 10 Jamming Range 16 Power Amplification 20 Additional Mass Support 9 Base Temperature (-) 200 Armor Coverage 300 Core Shielding 20 Evasion (%) 59 Recoil Reduction 2 Relay Coupler Types 105 Relay Coupler Value 4 Item Schematics ----------------- None Robot Schematics ------------------ None Fabricated ------------ Nothing Alien Tech Used ----------------- None Achievements -------------- Assimilation Complete Challenges ------------ None Game ------ Seed LegBladeShifter Manual? 0 Play Time 01:06:51 Cumulative 68.9 hours Start 2022.03.03 @ 00:10:01 End 2022.03.03 @ 01:22:59 Sessions 1 Manual Loads 0 Difficulty Rogue Special Mode None Game No. 88 Rogue 42 Adventurer 45 Explorer 1 Win Type - Total 0 Types 0/0/0/0/0/0/0/0/0 Lore% 25 Gallery% 45 Achievement% 31 Wizard Run 0 Options --------- ASCII 0 Keyboard 0 Movement Mouse Keybinds 0 Fullscreen 2 Font 16/Proggy Map View 76x50 Tactical HUD 1 Map Filters NONE Filters LOW_CONTRAST(13,24,33)|BRIGHTNESS(90)|SATURATION(87) Steam 1 RUN: 9fddd40d-8e32-4c62-b15c-d3e0b2863e11